[Event "Titled Tuesday Blitz April 26 Early 2022"]
[White "Ambartsumova, Karina"]
[Black "Dudzinski, Pawel"]
[WhiteFideId "4166299"]
[BlackFideId "1117890"]
[WhiteElo "2262"]
[BlackElo "2033"]
[Result "1-0"]
[Round "03"]
[TimeControl "180+1"]
[Date "2022.04.26"]
[WhiteClock "0:01:03"]
[BlackClock "0:01:56"]

1. e4 {[%clk 0:03:00]}  c6 {[%clk 0:02:59]} 2. Ne2 {[%clk 0:02:59]}  d5 {[%clk 0:03:00]} 3. e5 {[%clk 0:02:59]}  c5 {[%clk 0:03:00]} 4. c3 {[%clk 0:02:53]}  Nc6 {[%clk 0:03:01]} 5. d4 {[%clk 0:02:50]}  cxd4 {[%clk 0:03:01]} 6. cxd4 {[%clk 0:02:50]}  Bg4 {[%clk 0:03:01]} 7. Nbc3 {[%clk 0:02:48]}  e6 {[%clk 0:02:58]} 8. Be3 {[%clk 0:02:45]}  Bxe2 {[%clk 0:02:53]} 9. Bxe2 {[%clk 0:02:45]}  Qb6 {[%clk 0:02:54]} 10. O-O {[%clk 0:02:39]}  Nge7 {[%clk 0:02:55]} 11. Bd3 {[%clk 0:02:30]}  Ng6 {[%clk 0:02:44]} 12. f4 {[%clk 0:02:23]}  Bb4 {[%clk 0:02:24]} 13. Qd2 {[%clk 0:02:11]}  Nge7 {[%clk 0:02:15]} 14. a3 {[%clk 0:02:05]}  Bxc3 {[%clk 0:02:14]} 15. bxc3 {[%clk 0:02:02]}  Qa5 {[%clk 0:02:15]} 16. Rfb1 {[%clk 0:01:52]}  b6 {[%clk 0:02:13]} 17. a4 {[%clk 0:01:47]}  a6 {[%clk 0:02:04]} 18. Qb2 {[%clk 0:01:43]}  Rb8 {[%clk 0:02:03]} 19. Bd2 {[%clk 0:01:35]}  b5 {[%clk 0:02:01]} 20. axb5 {[%clk 0:01:31]}  Qc7 {[%clk 0:02:01]} 21. Rxa6 {[%clk 0:01:28]}  O-O {[%clk 0:02:00]} 22. Qa3 {[%clk 0:01:26]}  Nd8 {[%clk 0:01:57]} 23. Ra7 {[%clk 0:01:09]}  Nb7 {[%clk 0:01:57]} 24. b6 {[%clk 0:01:09]}  Qd8 {[%clk 0:01:57]} 25. Ba6 {[%clk 0:01:06]}  Qc8 {[%clk 0:01:56]} 26. Qxe7 {[%clk 0:01:03]} 1-0


[Site "https://www.chess.com"]

[Event "Titled Tuesday Blitz April 26 Early 2022"]
[White "Araujo Sanchez, Josue"]
[Black "Demin, Vladimir"]
[WhiteFideId "6416896"]
[BlackFideId "4167457"]
[WhiteElo "2339"]
[BlackElo "2373"]
[Result "0-1"]
[Round "03"]
[TimeControl "180+1"]
[Date "2022.04.26"]
[WhiteClock "0:00:33"]
[BlackClock "0:00:28"]

1. d4 {[%clk 0:03:00]}  Nf6 {[%clk 0:02:58]} 2. c3 {[%clk 0:02:58]}  d5 {[%clk 0:02:58]} 3. Bf4 {[%clk 0:02:57]}  c5 {[%clk 0:02:58]} 4. e3 {[%clk 0:02:57]}  Nc6 {[%clk 0:02:58]} 5. Nd2 {[%clk 0:02:57]}  e6 {[%clk 0:02:57]} 6. Ngf3 {[%clk 0:02:57]}  Bd6 {[%clk 0:02:55]} 7. Ne5 {[%clk 0:02:57]}  O-O {[%clk 0:02:51]} 8. Bd3 {[%clk 0:02:53]}  Qc7 {[%clk 0:02:46]} 9. Ndf3 {[%clk 0:02:48]}  Ne4 {[%clk 0:02:36]} 10. Nxc6 {[%clk 0:02:17]}  bxc6 {[%clk 0:02:27]} 11. Bxd6 {[%clk 0:02:12]}  Qxd6 {[%clk 0:02:27]} 12. O-O {[%clk 0:02:10]}  Rb8 {[%clk 0:02:14]} 13. Qc2 {[%clk 0:02:05]}  f5 {[%clk 0:02:06]} 14. Ne5 {[%clk 0:02:01]}  c4 {[%clk 0:02:07]} 15. Bxe4 {[%clk 0:01:57]}  fxe4 {[%clk 0:02:05]} 16. f3 {[%clk 0:01:57]}  exf3 {[%clk 0:02:04]} 17. Rxf3 {[%clk 0:01:57]}  Rxf3 {[%clk 0:02:03]} 18. gxf3 {[%clk 0:01:58]}  Bd7 {[%clk 0:02:02]} 19. Kh1 {[%clk 0:01:57]}  Rf8 {[%clk 0:01:58]} 20. Rg1 {[%clk 0:01:53]}  Be8 {[%clk 0:01:58]} 21. Qg2 {[%clk 0:01:52]}  Qe7 {[%clk 0:01:56]} 22. Qh3 {[%clk 0:01:49]}  Rf5 {[%clk 0:01:54]} 23. Rg3 {[%clk 0:01:45]}  Qf6 {[%clk 0:01:46]} 24. Qg4 {[%clk 0:01:40]}  Kh8 {[%clk 0:01:42]} 25. Qh3 {[%clk 0:01:35]}  Rh5 {[%clk 0:01:39]} 26. Qg4 {[%clk 0:01:27]}  Rf5 {[%clk 0:01:39]} 27. Kg2 {[%clk 0:01:23]}  Kg8 {[%clk 0:01:18]} 28. Qh3 {[%clk 0:00:57]}  Kh8 {[%clk 0:01:14]} 29. Rg4 {[%clk 0:00:54]}  Bh5 {[%clk 0:00:51]} 30. Rh4 {[%clk 0:00:52]}  g6 {[%clk 0:00:51]} 31. Qg3 {[%clk 0:00:50]}  Rg5 {[%clk 0:00:48]} 32. Rf4 {[%clk 0:00:48]}  Rxg3+ {[%clk 0:00:47]} 33. hxg3 {[%clk 0:00:47]}  Qe7 {[%clk 0:00:37]} 34. g4 {[%clk 0:00:45]}  g5 {[%clk 0:00:36]} 35. Nxc6 {[%clk 0:00:39]}  Qg7 {[%clk 0:00:31]} 36. Nd8 {[%clk 0:00:31]}  gxf4 {[%clk 0:00:30]} 37. Nxe6 {[%clk 0:00:32]}  Qe7 {[%clk 0:00:29]} 38. Nxf4 {[%clk 0:00:33]}  Bf7 {[%clk 0:00:28]} 0-1


[Site "https://www.chess.com"]

[Event "Titled Tuesday Blitz April 26 Early 2022"]
[White "Begunov, Konstantin"]
[Black "Vlassov, Nikolai"]
[WhiteFideId "4118510"]
[BlackFideId "4103360"]
[WhiteElo "2262"]
[BlackElo "2407"]
[Result "0-1"]
[Round "03"]
[TimeControl "180+1"]
[Date "2022.04.26"]
[WhiteClock "0:00:05"]
[BlackClock "0:00:27"]

1. d4 {[%clk 0:03:00]}  Nf6 {[%clk 0:02:59]} 2. c4 {[%clk 0:03:00]}  Nc6 {[%clk 0:02:59]} 3. Nc3 {[%clk 0:02:58]}  e5 {[%clk 0:03:00]} 4. d5 {[%clk 0:02:58]}  Ne7 {[%clk 0:03:00]} 5. h4 {[%clk 0:02:59]}  Neg8 {[%clk 0:03:00]} 6. e4 {[%clk 0:02:54]}  Bc5 {[%clk 0:02:59]} 7. Bd3 {[%clk 0:02:25]}  d6 {[%clk 0:02:57]} 8. b4 {[%clk 0:02:22]}  Bb6 {[%clk 0:02:49]} 9. Na4 {[%clk 0:02:22]}  Bd4 {[%clk 0:02:48]} 10. Rb1 {[%clk 0:02:20]}  Ng4 {[%clk 0:02:41]} 11. Nh3 {[%clk 0:01:35]}  Qxh4 {[%clk 0:02:39]} 12. Qe2 {[%clk 0:01:25]}  Qe7 {[%clk 0:02:17]} 13. Bb2 {[%clk 0:01:18]}  Bxb2 {[%clk 0:02:14]} 14. Nxb2 {[%clk 0:01:10]}  N8f6 {[%clk 0:02:14]} 15. f3 {[%clk 0:01:03]}  Nh6 {[%clk 0:02:13]} 16. g4 {[%clk 0:01:00]}  Nhg8 {[%clk 0:02:13]} 17. Rc1 {[%clk 0:00:59]}  a5 {[%clk 0:02:11]} 18. a3 {[%clk 0:00:44]}  axb4 {[%clk 0:02:11]} 19. axb4 {[%clk 0:00:44]}  h5 {[%clk 0:02:08]} 20. Nf2 {[%clk 0:00:35]}  Nd7 {[%clk 0:01:42]} 21. gxh5 {[%clk 0:00:32]}  Qg5 {[%clk 0:01:40]} 22. Kd1 {[%clk 0:00:19]}  Rxh5 {[%clk 0:01:37]} 23. Kc2 {[%clk 0:00:19]}  Ngf6 {[%clk 0:01:30]} 24. Rcg1 {[%clk 0:00:17]}  Qh6 {[%clk 0:01:30]} 25. Ng4 {[%clk 0:00:17]}  Qh7 {[%clk 0:01:18]} 26. Rxh5 {[%clk 0:00:15]}  Nxh5 {[%clk 0:01:15]} 27. Qh2 {[%clk 0:00:13]}  g6 {[%clk 0:01:10]} 28. Rh1 {[%clk 0:00:12]}  Qg7 {[%clk 0:01:08]} 29. Kb3 {[%clk 0:00:12]}  Ndf6 {[%clk 0:01:04]} 30. Be2 {[%clk 0:00:10]}  Ke7 {[%clk 0:00:53]} 31. Ne3 {[%clk 0:00:09]}  Nf4 {[%clk 0:00:49]} 32. Bf1 {[%clk 0:00:09]}  Bd7 {[%clk 0:00:48]} 33. Nd3 {[%clk 0:00:08]}  Nxd3 {[%clk 0:00:46]} 34. Bxd3 {[%clk 0:00:09]}  Nh5 {[%clk 0:00:46]} 35. Bf1 {[%clk 0:00:08]}  Nf4 {[%clk 0:00:43]} 36. Qh4+ {[%clk 0:00:08]}  Qf6 {[%clk 0:00:40]} 37. Qh7 {[%clk 0:00:08]}  Nh5 {[%clk 0:00:37]} 38. Bh3 {[%clk 0:00:07]}  Qxf3 {[%clk 0:00:35]} 39. Rf1 {[%clk 0:00:04]}  Qxe3+ {[%clk 0:00:34]} 40. Kb2 {[%clk 0:00:04]}  Qd2+ {[%clk 0:00:33]} 41. Kb1 {[%clk 0:00:05]}  Qxb4+ {[%clk 0:00:27]} 42. Kc2 {[%clk 0:00:05]}  Ra2+ {[%clk 0:00:27]} 43. Kd3 {[%clk 0:00:05]}  Qd2# {[%clk 0:00:27]} 0-1


[Site "https://www.chess.com"]

[Event "Titled Tuesday Blitz April 26 Early 2022"]
[White "Belenkaya, Dina"]
[Black "Piliczewski, Bogusz"]
[WhiteFideId "24142654"]
[BlackFideId "1104144"]
[WhiteElo "2196"]
[BlackElo "1896"]
[Result "1-0"]
[Round "03"]
[TimeControl "180+1"]
[Date "2022.04.26"]
[WhiteClock "0:00:06"]
[BlackClock "0:00:02"]

1. Nf3 {[%clk 0:02:59]}  d5 {[%clk 0:02:58]} 2. g3 {[%clk 0:02:57]}  Nf6 {[%clk 0:02:57]} 3. Bg2 {[%clk 0:02:55]}  Bf5 {[%clk 0:02:57]} 4. O-O {[%clk 0:02:55]}  e6 {[%clk 0:02:58]} 5. d3 {[%clk 0:02:56]}  h6 {[%clk 0:02:57]} 6. Nbd2 {[%clk 0:02:57]}  Be7 {[%clk 0:02:56]} 7. Re1 {[%clk 0:02:53]}  O-O {[%clk 0:02:55]} 8. c3 {[%clk 0:02:48]}  c5 {[%clk 0:02:54]} 9. Qc2 {[%clk 0:02:40]}  Nc6 {[%clk 0:02:52]} 10. e4 {[%clk 0:02:40]}  Bh7 {[%clk 0:02:52]} 11. Nh4 {[%clk 0:02:30]}  c4 {[%clk 0:02:40]} 12. dxc4 {[%clk 0:02:29]}  dxe4 {[%clk 0:02:40]} 13. Nxe4 {[%clk 0:02:17]}  Nxe4 {[%clk 0:02:15]} 14. Bxe4 {[%clk 0:02:18]}  Bxe4 {[%clk 0:02:14]} 15. Rxe4 {[%clk 0:02:06]}  f5 {[%clk 0:01:58]} 16. Rxe6 {[%clk 0:02:03]}  Bxh4 {[%clk 0:01:58]} 17. gxh4 {[%clk 0:02:04]}  Qxh4 {[%clk 0:01:56]} 18. Rg6 {[%clk 0:01:37]}  Ne5 {[%clk 0:01:32]} 19. Rg3 {[%clk 0:01:27]}  Ng4 {[%clk 0:01:12]} 20. Bf4 {[%clk 0:01:15]}  Qxh2+ {[%clk 0:01:07]} 21. Kf1 {[%clk 0:01:13]}  Qh1+ {[%clk 0:00:56]} 22. Rg1 {[%clk 0:01:12]}  Qf3 {[%clk 0:00:51]} 23. Bc1 {[%clk 0:00:11]}  Nh2+ {[%clk 0:00:46]} 24. Ke1 {[%clk 0:00:09]}  Rae8+ {[%clk 0:00:46]} 25. Be3 {[%clk 0:00:07]}  f4 {[%clk 0:00:36]} 26. Qg6 {[%clk 0:00:06]}  Rxe3+ {[%clk 0:00:25]} 27. fxe3 {[%clk 0:00:05]}  Qxe3+ {[%clk 0:00:25]} 28. Kd1 {[%clk 0:00:05]}  Rd8+ {[%clk 0:00:25]} 29. Kc2 {[%clk 0:00:06]}  Rd2+ {[%clk 0:00:18]} 30. Kb3 {[%clk 0:00:06]}  Qb6+ {[%clk 0:00:17]} 31. Qxb6 {[%clk 0:00:05]}  axb6 {[%clk 0:00:17]} 32. Rad1 {[%clk 0:00:05]}  Rxd1 {[%clk 0:00:15]} 33. Rxd1 {[%clk 0:00:06]}  g5 {[%clk 0:00:11]} 34. c5 {[%clk 0:00:04]}  bxc5 {[%clk 0:00:10]} 35. Kc4 {[%clk 0:00:05]}  Kf7 {[%clk 0:00:09]} 36. Kxc5 {[%clk 0:00:05]}  Kf6 {[%clk 0:00:09]} 37. Kb6 {[%clk 0:00:05]}  f3 {[%clk 0:00:07]} 38. Rd2 {[%clk 0:00:04]}  Ng4 {[%clk 0:00:05]} 39. c4 {[%clk 0:00:03]}  f2 {[%clk 0:00:04]} 40. Rd1 {[%clk 0:00:02]}  Ne3 {[%clk 0:00:03]} 41. Rc1 {[%clk 0:00:02]}  f1=Q {[%clk 0:00:02]} 42. Rxf1+ {[%clk 0:00:02]}  Nxf1 {[%clk 0:00:02]} 43. Kxb7 {[%clk 0:00:03]}  g4 {[%clk 0:00:02]} 44. c5 {[%clk 0:00:04]}  g3 {[%clk 0:00:02]} 45. c6 {[%clk 0:00:05]}  g2 {[%clk 0:00:02]} 46. c7 {[%clk 0:00:05]}  g1=Q {[%clk 0:00:02]} 47. c8=Q {[%clk 0:00:06]} 1-0


[Site "https://www.chess.com"]

[Event "Titled Tuesday Blitz April 26 Early 2022"]
[White "Belozerov, Andrei"]
[Black "Pranav, V"]
[WhiteFideId "4120213"]
[BlackFideId "25060783"]
[WhiteElo "2320"]
[BlackElo "2349"]
[Result "0-1"]
[Round "03"]
[TimeControl "180+1"]
[Date "2022.04.26"]
[WhiteClock "0:00:11"]
[BlackClock "0:00:18"]

1. e4 {[%clk 0:03:00]}  e5 {[%clk 0:02:59]} 2. Nf3 {[%clk 0:03:00]}  Nc6 {[%clk 0:02:58]} 3. Bb5 {[%clk 0:03:00]}  a6 {[%clk 0:02:57]} 4. Ba4 {[%clk 0:03:00]}  d6 {[%clk 0:02:57]} 5. c3 {[%clk 0:03:00]}  Bd7 {[%clk 0:02:57]} 6. d4 {[%clk 0:02:59]}  g6 {[%clk 0:02:57]} 7. O-O {[%clk 0:02:59]}  Bg7 {[%clk 0:02:57]} 8. Re1 {[%clk 0:02:58]}  Nf6 {[%clk 0:02:57]} 9. d5 {[%clk 0:02:50]}  Ne7 {[%clk 0:02:55]} 10. c4 {[%clk 0:02:50]}  O-O {[%clk 0:02:55]} 11. Nc3 {[%clk 0:02:49]}  Bc8 {[%clk 0:02:51]} 12. b4 {[%clk 0:02:43]}  a5 {[%clk 0:02:47]} 13. a3 {[%clk 0:02:33]}  h6 {[%clk 0:02:44]} 14. c5 {[%clk 0:02:27]}  g5 {[%clk 0:02:43]} 15. Nd2 {[%clk 0:02:19]}  Ng6 {[%clk 0:02:40]} 16. Nc4 {[%clk 0:02:19]}  Bg4 {[%clk 0:02:23]} 17. f3 {[%clk 0:02:10]}  axb4 {[%clk 0:02:23]} 18. axb4 {[%clk 0:02:04]}  Bc8 {[%clk 0:02:21]} 19. Ne3 {[%clk 0:01:53]}  Ne7 {[%clk 0:02:13]} 20. Bd2 {[%clk 0:01:44]}  Nh5 {[%clk 0:02:11]} 21. Bc2 {[%clk 0:01:36]}  Rb8 {[%clk 0:02:09]} 22. Nf5 {[%clk 0:01:21]}  Nf4 {[%clk 0:02:00]} 23. g3 {[%clk 0:01:17]}  Nfg6 {[%clk 0:01:58]} 24. Be3 {[%clk 0:01:12]}  Nxf5 {[%clk 0:01:47]} 25. exf5 {[%clk 0:01:11]}  e4 {[%clk 0:01:48]} 26. Nxe4 {[%clk 0:01:04]}  Bxf5 {[%clk 0:01:29]} 27. Bd4 {[%clk 0:00:52]}  Ne5 {[%clk 0:01:23]} 28. Nd2 {[%clk 0:00:38]}  Bd7 {[%clk 0:01:12]} 29. f4 {[%clk 0:00:33]}  gxf4 {[%clk 0:01:11]} 30. gxf4 {[%clk 0:00:34]}  Qh4 {[%clk 0:01:07]} 31. Bxe5 {[%clk 0:00:20]}  dxe5 {[%clk 0:01:04]} 32. f5 {[%clk 0:00:20]}  e4 {[%clk 0:00:56]} 33. Nxe4 {[%clk 0:00:19]}  Be5 {[%clk 0:00:54]} 34. Re2 {[%clk 0:00:18]}  Kh8 {[%clk 0:00:46]} 35. Ra3 {[%clk 0:00:18]}  Rg8+ {[%clk 0:00:45]} 36. Kh1 {[%clk 0:00:18]}  Bxf5 {[%clk 0:00:43]} 37. Qf1 {[%clk 0:00:17]}  Bg4 {[%clk 0:00:25]} 38. Rg2 {[%clk 0:00:16]}  f5 {[%clk 0:00:25]} 39. Ng3 {[%clk 0:00:15]}  Bh3 {[%clk 0:00:25]} 40. Bxf5 {[%clk 0:00:13]}  Rbf8 {[%clk 0:00:24]} 41. Rf3 {[%clk 0:00:12]}  Bxg2+ {[%clk 0:00:21]} 42. Kxg2 {[%clk 0:00:12]}  Rxf5 {[%clk 0:00:18]} 43. Rxf5 {[%clk 0:00:11]}  Rxg3+ {[%clk 0:00:18]} 44. Kh1 {[%clk 0:00:11]}  Qe4+ {[%clk 0:00:18]} 0-1


[Site "https://www.chess.com"]

[Event "Titled Tuesday Blitz April 26 Early 2022"]
[White "Biletskiy, Danylo"]
[Black "Haukenfrers, Dale"]
[WhiteFideId "14155419"]
[BlackFideId "2603780"]
[WhiteElo "2087"]
[BlackElo "2035"]
[Result "0-1"]
[Round "03"]
[TimeControl "180+1"]
[Date "2022.04.26"]
[WhiteClock "0:01:35"]
[BlackClock "0:01:35"]

1. e4 {[%clk 0:03:00]}  c6 {[%clk 0:03:00]} 2. d4 {[%clk 0:03:00]}  d6 {[%clk 0:03:01]} 3. f3 {[%clk 0:03:01]}  e6 {[%clk 0:03:00]} 4. Nc3 {[%clk 0:03:02]}  Nf6 {[%clk 0:02:59]} 5. Be3 {[%clk 0:03:02]}  d5 {[%clk 0:02:59]} 6. e5 {[%clk 0:03:02]}  Nfd7 {[%clk 0:02:58]} 7. f4 {[%clk 0:03:03]}  Bb4 {[%clk 0:02:58]} 8. Nf3 {[%clk 0:03:04]}  Nb6 {[%clk 0:02:58]} 9. Qd2 {[%clk 0:03:04]}  Nc4 {[%clk 0:02:54]} 10. Bxc4 {[%clk 0:03:02]}  dxc4 {[%clk 0:02:55]} 11. a3 {[%clk 0:03:03]}  Qa5 {[%clk 0:02:54]} 12. O-O {[%clk 0:03:02]}  Bxc3 {[%clk 0:02:53]} 13. bxc3 {[%clk 0:03:03]}  Nd7 {[%clk 0:02:51]} 14. Ng5 {[%clk 0:03:03]}  Nb6 {[%clk 0:02:49]} 15. Ne4 {[%clk 0:03:00]}  O-O {[%clk 0:02:45]} 16. Nd6 {[%clk 0:02:57]}  Nd5 {[%clk 0:02:37]} 17. Nxc4 {[%clk 0:02:50]}  Qxc3 {[%clk 0:02:37]} 18. Qxc3 {[%clk 0:02:50]}  Nxc3 {[%clk 0:02:37]} 19. Bd2 {[%clk 0:02:49]}  Na4 {[%clk 0:02:31]} 20. Bb4 {[%clk 0:02:48]}  Rd8 {[%clk 0:02:29]} 21. Nd6 {[%clk 0:02:47]}  b6 {[%clk 0:02:22]} 22. Rf3 {[%clk 0:02:38]}  Ba6 {[%clk 0:02:19]} 23. f5 {[%clk 0:02:34]}  c5 {[%clk 0:02:10]} 24. dxc5 {[%clk 0:02:25]}  Nxc5 {[%clk 0:02:10]} 25. Bxc5 {[%clk 0:02:24]}  bxc5 {[%clk 0:02:11]} 26. fxe6 {[%clk 0:02:18]}  fxe6 {[%clk 0:02:11]} 27. Rb1 {[%clk 0:02:19]}  Rab8 {[%clk 0:02:10]} 28. Rfb3 {[%clk 0:02:19]}  Rxb3 {[%clk 0:01:59]} 29. Rxb3 {[%clk 0:02:20]}  Rf8 {[%clk 0:01:46]} 30. g3 {[%clk 0:02:04]}  h6 {[%clk 0:01:46]} 31. Kg2 {[%clk 0:02:02]}  Bf1+ {[%clk 0:01:45]} 32. Kg1 {[%clk 0:02:00]}  Bh3 {[%clk 0:01:44]} 33. Rb1 {[%clk 0:02:00]}  Rf3 {[%clk 0:01:43]} 34. a4 {[%clk 0:01:55]}  Ra3 {[%clk 0:01:38]} 35. Rb8+ {[%clk 0:01:39]}  Kh7 {[%clk 0:01:37]} 36. Rc8 {[%clk 0:01:40]}  Rf3 {[%clk 0:01:36]} 37. Rf8 {[%clk 0:01:35]}  Rxf8 {[%clk 0:01:35]} 0-1


[Site "https://www.chess.com"]

[Event "Titled Tuesday Blitz April 26 Early 2022"]
[White "Blokhin, Sofia"]
[Black "Jaskolka, Tomasz"]
[WhiteFideId "4508190"]
[BlackFideId "1170791"]
[WhiteElo "1764"]
[BlackElo "2073"]
[Result "0-1"]
[Round "03"]
[TimeControl "180+1"]
[Date "2022.04.26"]
[WhiteClock "0:00:52"]
[BlackClock "0:00:51"]

1. d4 {[%clk 0:03:00]}  Nf6 {[%clk 0:02:58]} 2. c4 {[%clk 0:02:57]}  e6 {[%clk 0:02:59]} 3. Nc3 {[%clk 0:02:57]}  Bb4 {[%clk 0:02:58]} 4. Nf3 {[%clk 0:02:52]}  O-O {[%clk 0:02:57]} 5. Qc2 {[%clk 0:02:50]}  d6 {[%clk 0:02:57]} 6. a3 {[%clk 0:02:46]}  Bxc3+ {[%clk 0:02:57]} 7. Qxc3 {[%clk 0:02:45]}  b6 {[%clk 0:02:57]} 8. e3 {[%clk 0:02:43]}  Bb7 {[%clk 0:02:57]} 9. Bd3 {[%clk 0:02:43]}  Nbd7 {[%clk 0:02:56]} 10. b4 {[%clk 0:02:37]}  Re8 {[%clk 0:02:50]} 11. Qc2 {[%clk 0:02:36]}  e5 {[%clk 0:02:47]} 12. Ng5 {[%clk 0:02:25]}  h6 {[%clk 0:02:44]} 13. Nxf7 {[%clk 0:02:14]}  Kxf7 {[%clk 0:02:42]} 14. Bg6+ {[%clk 0:02:14]}  Kg8 {[%clk 0:02:42]} 15. Bxe8 {[%clk 0:02:13]}  Qxe8 {[%clk 0:02:42]} 16. d5 {[%clk 0:02:12]}  a5 {[%clk 0:02:39]} 17. Bb2 {[%clk 0:02:09]}  b5 {[%clk 0:02:14]} 18. e4 {[%clk 0:02:01]}  bxc4 {[%clk 0:01:43]} 19. Qxc4 {[%clk 0:01:58]}  Ba6 {[%clk 0:01:39]} 20. b5 {[%clk 0:01:45]}  Nb6 {[%clk 0:01:38]} 21. Qxc7 {[%clk 0:01:40]}  Qxb5 {[%clk 0:01:36]} 22. Qc2 {[%clk 0:01:24]}  Rc8 {[%clk 0:01:23]} 23. a4 {[%clk 0:01:17]}  Qb4+ {[%clk 0:01:17]} 24. Qd2 {[%clk 0:01:15]}  Qxe4+ {[%clk 0:01:15]} 25. Qe3 {[%clk 0:01:10]}  Qxg2 {[%clk 0:00:51]} 26. Kd2 {[%clk 0:00:52]}  Nc4+ {[%clk 0:00:51]} 0-1


[Site "https://www.chess.com"]

[Event "Titled Tuesday Blitz April 26 Early 2022"]
[White "Bluebaum, Matthias"]
[Black "Nurmanova, Alua"]
[WhiteFideId "24651516"]
[BlackFideId "13729390"]
[WhiteElo "2550"]
[BlackElo "1905"]
[Result "1-0"]
[Round "03"]
[TimeControl "180+1"]
[Date "2022.04.26"]
[WhiteClock "0:02:27"]
[BlackClock "0:00:02"]

1. d4 {[%clk 0:03:00]}  Nf6 {[%clk 0:02:58]} 2. c4 {[%clk 0:03:01]}  g6 {[%clk 0:02:57]} 3. Nc3 {[%clk 0:03:01]}  Bg7 {[%clk 0:02:57]} 4. e4 {[%clk 0:03:00]}  d6 {[%clk 0:02:57]} 5. Nf3 {[%clk 0:02:58]}  O-O {[%clk 0:02:56]} 6. Be2 {[%clk 0:02:59]}  e5 {[%clk 0:02:56]} 7. Be3 {[%clk 0:02:58]}  Nc6 {[%clk 0:02:49]} 8. d5 {[%clk 0:02:57]}  Ne7 {[%clk 0:02:44]} 9. Nd2 {[%clk 0:02:58]}  h5 {[%clk 0:02:20]} 10. f3 {[%clk 0:02:56]}  Nh7 {[%clk 0:02:16]} 11. c5 {[%clk 0:02:56]}  f5 {[%clk 0:02:00]} 12. Nc4 {[%clk 0:02:55]}  f4 {[%clk 0:01:33]} 13. Bf2 {[%clk 0:02:54]}  Nf6 {[%clk 0:01:03]} 14. cxd6 {[%clk 0:02:51]}  cxd6 {[%clk 0:01:04]} 15. Nb5 {[%clk 0:02:51]}  Ne8 {[%clk 0:01:04]} 16. Nxa7 {[%clk 0:02:46]}  Bd7 {[%clk 0:00:55]} 17. Nb6 {[%clk 0:02:45]}  Rxa7 {[%clk 0:00:44]} 18. Nxd7 {[%clk 0:02:46]}  Rf7 {[%clk 0:00:40]} 19. O-O {[%clk 0:02:36]}  Ra8 {[%clk 0:00:35]} 20. Nb6 {[%clk 0:02:36]}  Rb8 {[%clk 0:00:31]} 21. Rc1 {[%clk 0:02:36]}  g5 {[%clk 0:00:22]} 22. Bb5 {[%clk 0:02:36]}  Ng6 {[%clk 0:00:19]} 23. Qa4 {[%clk 0:02:31]}  Nc7 {[%clk 0:00:18]} 24. Bd7 {[%clk 0:02:31]}  Nf8 {[%clk 0:00:14]} 25. Bf5 {[%clk 0:02:30]}  Bh6 {[%clk 0:00:10]} 26. h3 {[%clk 0:02:29]}  Kg7 {[%clk 0:00:03]} 27. Rc2 {[%clk 0:02:30]}  Ng6 {[%clk 0:00:03]} 28. Rfc1 {[%clk 0:02:29]}  Ne8 {[%clk 0:00:02]} 29. Rc8 {[%clk 0:02:26]}  Rxc8 {[%clk 0:00:02]} 30. Rxc8 {[%clk 0:02:27]} 1-0


[Site "https://www.chess.com"]

[Event "Titled Tuesday Blitz April 26 Early 2022"]
[White "Cagara, Paulina"]
[Black "Matamoros Franco, Carlos S."]
[WhiteFideId "1124870"]
[BlackFideId "3600017"]
[WhiteElo "1780"]
[BlackElo "2554"]
[Result "0-1"]
[Round "03"]
[TimeControl "180+1"]
[Date "2022.04.26"]
[WhiteClock "0:00:54"]
[BlackClock "0:00:27"]

1. e4 {[%clk 0:03:00]}  c5 {[%clk 0:02:58]} 2. Nc3 {[%clk 0:03:00]}  Nc6 {[%clk 0:02:56]} 3. Bb5 {[%clk 0:02:59]}  Nd4 {[%clk 0:02:55]} 4. Bc4 {[%clk 0:02:58]}  a6 {[%clk 0:02:53]} 5. Nf3 {[%clk 0:02:57]}  b5 {[%clk 0:02:51]} 6. Bd5 {[%clk 0:02:56]}  Rb8 {[%clk 0:02:51]} 7. a4 {[%clk 0:02:44]}  Nf6 {[%clk 0:02:37]} 8. axb5 {[%clk 0:02:36]}  axb5 {[%clk 0:02:36]} 9. Nxd4 {[%clk 0:02:28]}  cxd4 {[%clk 0:02:34]} 10. Ne2 {[%clk 0:02:21]}  e6 {[%clk 0:02:27]} 11. Bb3 {[%clk 0:02:19]}  Nxe4 {[%clk 0:02:25]} 12. O-O {[%clk 0:02:18]}  d3 {[%clk 0:01:54]} 13. cxd3 {[%clk 0:02:13]}  Nf6 {[%clk 0:01:54]} 14. d4 {[%clk 0:02:13]}  Bb7 {[%clk 0:01:53]} 15. d3 {[%clk 0:02:09]}  Be7 {[%clk 0:01:48]} 16. Bf4 {[%clk 0:02:06]}  Ra8 {[%clk 0:01:39]} 17. Rxa8 {[%clk 0:02:03]}  Qxa8 {[%clk 0:01:38]} 18. f3 {[%clk 0:02:02]}  Nd5 {[%clk 0:01:30]} 19. Bd2 {[%clk 0:01:59]}  O-O {[%clk 0:01:16]} 20. Nc3 {[%clk 0:01:58]}  b4 {[%clk 0:01:08]} 21. Ne4 {[%clk 0:01:57]}  Qa7 {[%clk 0:01:02]} 22. Kh1 {[%clk 0:01:51]}  Qxd4 {[%clk 0:01:01]} 23. Bc4 {[%clk 0:01:34]}  Qxb2 {[%clk 0:00:59]} 24. Bg5 {[%clk 0:01:27]}  Bxg5 {[%clk 0:00:47]} 25. Nxg5 {[%clk 0:01:26]}  h6 {[%clk 0:00:47]} 26. Bxd5 {[%clk 0:01:18]}  Bxd5 {[%clk 0:00:47]} 27. Ne4 {[%clk 0:01:17]}  Rc8 {[%clk 0:00:42]} 28. Qa4 {[%clk 0:01:12]}  Rc1 {[%clk 0:00:39]} 29. Rg1 {[%clk 0:01:10]}  Qb1 {[%clk 0:00:30]} 30. Nf6+ {[%clk 0:00:54]}  gxf6 {[%clk 0:00:27]} 0-1


[Site "https://www.chess.com"]